bitfinex-derivatives/quotes_ETHF0:USTF0_20251204
["timestamp","ask_amount","ask_price","bid_price","bid_amount"]
[1764867462949,7.493,3169.4,3169.3,26.28333814]
[1764867463154,4.4659,3170.0,3169.3,29.49113814]
[1764867463749,11.9589,3170.0,3169.9,7.7279]
[1764867464049,18.9715,3170.0,3169.9,7.7279]
[1764867464840,18.9715,3170.0,3169.3,14.70182929]
[1764867466143,11.9589,3170.0,3169.9,7.7279]
[1764867466340,18.9715,3170.0,3169.9,7.7279]
[1764867466544,18.9715,3170.0,3169.3,14.70182929]
[1764867467750,18.9715,3170.0,3169.9,7.7279]
[1764867467955,7.493,3170.0,3169.9,14.9498]
[1764867468358,44.0078,3170.1,3170.0,14.9498]
[1764867468654,44.0078,3170.1,3169.5,4.1607]
[1764867468848,18.9715,3170.0,3169.9,7.7279]
[1764867469044,14.5056,3169.4,3169.3,14.15099929]
[1764867469248,14.5056,3169.4,3169.3,19.26809929]
[1764867469451,7.493,3169.4,3169.3,34.21789929]
[1764867469855,11.9589,3169.5,3169.4,7.7279]
[1764867470055,7.493,3169.5,3169.4,14.9498]
[1764867470856,4.4659,3170.0,3169.4,14.9498]
[1764867471054,0.75979426,3169.9,3169.4,14.9498]
[1764867471246,7.493,3169.5,3169.4,14.9498]
[1764867471856,14.5056,3169.4,3169.3,26.99599929]
[1764867472572,14.5056,3169.4,3169.3,14.15099929]
[1764867472763,14.5056,3169.4,3169.3,26.99399929]
[1764867473264,7.493,3169.4,3169.3,34.21589929]
[1764867473462,7.493,3169.5,3169.4,14.9498]
[1764867475553,8.25609457,3169.5,3169.4,14.9498]
[1764867475753,0.76309457,3169.5,3169.4,14.9498]
[1764867475961,0.76309457,3169.9,3169.4,14.9498]
[1764867476256,0.76309457,3169.8,3169.4,14.9498]
[1764867476462,15.26869457,3169.7,3169.6,7.7279]
[1764867479459,15.26869457,3169.7,3169.6,14.9498]
[1764867479860,0.76309457,3169.7,3169.6,14.9498]
[1764867480566,8.25609457,3169.7,3169.6,14.9498]
[1764867480755,0.76309457,3169.7,3169.6,14.9498]
[1764867480957,44.0078,3170.1,3170.0,7.7279]
[1764867481164,11.46677217,3170.1,3170.0,27.7888]
[1764867481461,3.97377217,3170.1,3170.0,27.7888]
[1764867481762,3.97377217,3170.1,3170.0,31.3846]
[1764867481962,0.76597217,3170.1,3170.0,31.3846]
[1764867482169,3.2078,3170.5,3170.4,14.9498]
[1764867482364,11.46683417,3170.5,3170.4,7.7279]
[1764867482567,18.47943417,3170.5,3170.4,25.6028]
[1764867482767,3.97383417,3170.5,3170.4,25.6028]
[1764867483666,40.8,3170.9,3170.8,14.9498]
[1764867483867,41.56602618,3170.9,3170.4,13.8608]
[1764867484068,15.76382618,3170.8,3170.7,7.3796]
[1764867484268,0.76602618,3170.8,3170.7,14.7423]
[1764867484657,15.76382618,3170.8,3170.7,14.7423]
[1764867484856,19.4242,3170.5,3170.4,10.5874]
[1764867485057,0.00770962,3171.0,3170.9,7.3796]
[1764867485269,0.00770962,3171.0,3170.9,14.7423]
[1764867486257,7.36250962,3171.0,3170.9,14.7423]
[1764867486464,19.43190962,3171.0,3170.9,7.3796]
[1764867486660,11.78890962,3171.0,3170.9,14.7423]
[1764867486865,0.00770962,3171.0,3170.9,14.7423]
[1764867487060,19.43190962,3171.0,3170.4,3.2078]
[1764867487261,19.43190962,3171.0,3170.9,7.3796]
[1764867487467,5.19854336,3171.0,3170.5,20.4393]
[1764867487766,14.9978,3170.0,3169.9,17.9501]
[1764867487965,14.9978,3170.0,3169.9,30.7831]
[1764867488164,7.3548,3170.0,3169.9,30.7831]
[1764867488366,7.3548,3170.0,3169.9,33.9909]
[1764867488563,14.9978,3170.0,3169.9,33.9909]
[1764867488969,19.4242,3170.0,3169.9,26.6282]
[1764867489272,19.4242,3170.0,3169.9,19.2486]
[1764867489468,22.632,3170.0,3169.9,16.0408]
[1764867490067,22.632,3170.0,3169.9,3.2078]
[1764867490272,23.39655341,3170.0,3169.9,16.0398]
[1764867490772,19.4242,3170.0,3169.9,23.4194]
[1764867490977,40.8,3170.4,3169.9,30.7821]
[1764867491277,19.4242,3170.0,3169.9,23.4194]
[1764867491675,19.4242,3170.0,3169.9,16.0398]
[1764867493775,19.4242,3170.0,3169.9,23.4194]
[1764867493976,7.3548,3170.0,3169.9,30.7821]
[1764867494773,40.8,3170.4,3169.9,30.7821]
[1764867494975,40.8,3170.4,3170.3,7.3796]
[1764867495182,41.56464563,3170.4,3170.3,7.3796]
[1764867495393,40.8,3170.4,3169.9,16.0398]
[1764867496485,40.8,3170.4,3170.3,7.3796]
[1764867496689,40.8,3170.4,3170.3,14.7423]
[1764867497086,14.989,3170.5,3170.4,7.3796]
[1764867497290,22.632,3170.5,3170.1,3.2078]
[1764867497491,19.4242,3170.0,3169.9,10.5874]
[1764867497691,19.4242,3170.0,3169.9,23.4154]
[1764867497893,19.4242,3170.0,3169.9,30.7781]
[1764867498081,10.5626,3170.9,3170.8,14.7423]
[1764867498394,10.5626,3170.9,3170.8,27.5703]
[1764867498985,3.2078,3170.9,3170.8,27.5703]
[1764867500293,19.4242,3170.5,3170.4,17.9501]
[1764867500598,7.3548,3170.5,3170.4,30.7771]
[1764867500786,19.4242,3170.5,3170.4,30.7771]
[1764867501294,19.4242,3170.5,3170.4,16.0338]
[1764867501595,19.4242,3170.5,3170.4,23.4134]
[1764867503594,19.4242,3170.5,3170.4,16.0338]
[1764867504200,19.4242,3170.5,3170.4,23.4134]
[1764867504697,11.7812,3170.5,3170.4,30.7761]
[1764867504896,19.4242,3170.5,3170.4,30.7761]
[1764867506198,19.4242,3170.5,3170.4,17.9501]
[1764867506396,19.4242,3170.5,3170.4,30.7721]
[1764867506696,19.4242,3170.5,3170.4,23.4094]
[1764867507896,19.4242,3170.5,3170.4,16.0288]
[1764867508101,19.4242,3170.5,3170.4,12.821]
[1764867508399,7.3548,3170.1,3170.0,14.89999]
[1764867508596,7.3548,3170.1,3170.0,27.71999]
[1764867508797,14.9978,3170.1,3170.0,27.71999]
[1764867509390,7.3548,3170.1,3170.0,27.71999]
[1764867510091,14.9978,3170.1,3170.0,27.71999]
[1764867510392,7.3548,3170.1,3170.0,27.71999]
[1764867510999,7.6342,3170.5,3170.0,27.71999]
[1764867511487,7.3548,3170.1,3170.0,27.5623]
[1764867511887,7.6342,3170.5,3170.0,27.5623]
[1764867512505,7.3548,3170.1,3170.0,27.5623]
[1764867513002,7.6342,3170.5,3170.0,27.5623]
[1764867514205,22.7379,3170.5,3170.4,14.5917]
[1764867515904,22.7379,3170.5,3170.4,7.4228]
[1764867516210,22.7379,3170.5,3170.0,16.4202]
[1764867516604,14.7946,3170.1,3170.0,27.4117]
[1764867517005,7.6342,3170.5,3169.9,3.2078]
[1764867517006,19.2071,3170.0,3169.9,17.7995]
[1764867517206,19.2071,3170.0,3169.9,30.6145]
[1764867517399,11.4582,3170.0,3169.9,30.6145]
[1764867517705,19.2071,3170.0,3169.9,16.0228]
[1764867518003,19.2071,3170.0,3169.9,23.4456]
[1764867518209,19.2071,3170.0,3169.9,20.2378]
[1764867518405,19.2071,3170.0,3169.9,30.6145]
[1764867519409,11.4582,3170.0,3169.9,30.6145]
[1764867519709,17.18176436,3170.4,3170.3,7.4228]
[1764867520904,7.0457,3170.4,3170.3,14.5917]
[1764867521111,3.2078,3170.5,3170.4,14.5917]
[1764867521301,10.2535,3170.5,3170.4,27.4047]
[1764867521706,22.4149,3170.5,3170.4,27.4047]
[1764867522103,14.666,3170.5,3170.4,27.4047]
[1764867522410,21.7992,3170.5,3170.4,27.4047]
[1764867524612,18.5914,3170.5,3170.4,27.4047]
[1764867526317,11.3457,3170.0,3169.9,3.2078]
[1764867526511,24.37056436,3170.0,3169.9,16.0178]
[1764867527916,65.17056436,3170.0,3169.9,16.0178]
[1764867529518,62.7834,3170.0,3169.9,16.0178]
[1764867530213,59.5756,3170.0,3169.9,23.4389]
[1764867530411,22.1834,3170.5,3169.9,19.2256]
[1764867532414,22.1834,3170.5,3169.9,19.3833]
[1764867532614,22.1834,3170.5,3169.9,19.2256]
[1764867532918,7.4299,3170.0,3169.9,34.1561]
[1764867533118,7.6203,3170.5,3169.9,34.1561]
[1764867534616,18.7756,3170.0,3169.9,10.6289]
[1764867534818,18.7756,3170.0,3169.9,30.9433]
[1764867535620,11.6424,3170.0,3169.9,30.9433]
[1764867536521,7.6203,3170.5,3169.9,30.9433]
[1764867536817,7.4299,3170.0,3169.9,30.9433]
[1764867537217,14.5631,3170.0,3169.9,30.9433]
[1764867537415,18.7756,3170.0,3169.9,30.9433]
[1764867537618,7.4299,3169.6,3169.5,18.1383]
[1764867537818,18.7756,3170.0,3169.9,7.4211]
[1764867538320,18.7756,3170.0,3169.9,14.9305]
[1764867538520,7.4299,3170.0,3169.9,14.9305]
[1764867538821,18.7756,3170.0,3169.9,7.4211]
[1764867539018,18.7756,3170.0,3169.9,14.9305]
[1764867539414,18.7756,3170.0,3169.9,18.1383]
[1764867539723,40.8,3170.4,3170.3,14.9305]
[1764867539925,18.9756,3170.5,3170.4,14.9305]
[1764867540822,11.8424,3170.5,3170.4,14.9305]
[1764867541123,7.4299,3170.5,3170.4,14.9305]
[1764867541326,40.8,3170.8,3170.7,7.4211]
[1764867541516,41.56533805,3170.8,3170.7,7.4211]
[1764867541714,41.56533805,3170.8,3170.3,12.802]
[1764867541715,7.4299,3170.4,3170.3,27.7325]
[1764867542417,40.8,3170.8,3170.7,7.4211]
[1764867542622,41.56538692,3170.8,3170.7,7.4211]
[1764867542823,10.6377,3170.9,3170.8,7.4211]
[1764867543029,17.7709,3170.9,3170.8,14.9305]
[1764867543328,58.5709,3170.9,3170.3,16.0098]
[1764867544324,58.5709,3170.9,3170.8,15.1298]
[1764867546324,10.6377,3170.9,3170.8,15.1298]
[1764867546528,3.2078,3170.9,3170.3,18.34438]
[1764867546724,44.0078,3170.9,3170.4,12.798]
[1764867546930,19.7777,3170.5,3170.4,27.7769]
[1764867547630,44.0078,3170.9,3170.4,27.7769]
[1764867548017,40.8,3170.9,3170.8,14.9789]
[1764867548329,15.3305,3170.9,3170.8,14.9789]
[1764867548932,7.5855,3170.9,3170.8,14.9789]
[1764867549819,12.01960962,3171.0,3170.9,14.9789]
[1764867550029,12.01960962,3171.0,3170.9,27.7729]
[1764867550531,19.76460962,3171.0,3170.9,27.7729]
[1764867551232,19.76460962,3171.0,3170.9,20.0642]
[1764867551732,15.3305,3170.8,3170.7,3.2078]
[1764867551933,15.3305,3170.8,3170.7,30.9807]
[1764867552232,7.5855,3170.8,3170.7,30.9807]
[1764867552426,12.01960962,3171.0,3170.9,14.9789]
[1764867552826,19.76460962,3171.0,3170.7,16.0018]
[1764867553026,7.5855,3170.8,3170.7,30.9807]
[1764867553332,15.3305,3170.8,3170.7,30.9807]
[1764867553934,7.5855,3170.8,3170.7,30.9807]
[1764867554234,19.76460962,3171.0,3170.9,14.9789]
[1764867554535,12.01960962,3171.0,3170.9,14.9789]
[1764867555034,7.59320962,3171.0,3170.9,14.9789]
[1764867555232,19.78540962,3171.0,3170.7,3.2078]
[1764867555534,19.78540962,3171.0,3170.4,14.9789]
[1764867555535,19.7777,3170.5,3170.4,14.9789]
[1764867555732,4.45490962,3171.0,3170.4,20.1149]
[1764867555936,19.78540962,3171.0,3170.9,7.2702]
[1764867556124,7.5855,3170.4,3170.3,18.1867]
[1764867556330,15.3305,3170.4,3170.3,30.9757]
[1764867556824,15.3305,3170.4,3170.3,3.2078]
[1764867557025,7.5855,3170.0,3169.9,18.1867]
[1764867557220,7.5855,3170.0,3169.9,30.1697]
[1764867557428,4.4472,3170.5,3169.9,30.1697]
[1764867561038,3.2078,3170.8,3170.4,7.2702]
[1764867561230,7.5855,3170.5,3170.4,14.9789]
[1764867561537,15.3305,3170.5,3170.4,20.0562]
[1764867561738,19.7777,3170.5,3170.4,27.7649]
[1764867562935,4.4472,3170.5,3169.9,18.1867]
[1764867563129,15.3305,3170.4,3170.3,12.786]
[1764867563531,15.3305,3170.4,3170.3,20.0562]
[1764867563732,15.3305,3170.4,3170.3,27.7649]
[1764867563935,15.3305,3170.4,3170.3,20.0562]
[1764867564330,15.3305,3170.4,3170.3,12.786]
[1764867564531,18.5383,3170.4,3170.3,12.786]
[1764867564930,59.3383,3170.4,3170.3,12.786]
[1764867565538,59.3383,3170.4,3170.3,8.07058753]
[1764867566237,60.10318034,3170.4,3170.3,8.07058753]
[1764867566435,19.7777,3170.0,3169.9,10.478]
[1764867566636,19.7777,3170.0,3169.9,13.2898]
[1764867567541,19.7777,3170.0,3169.9,3.2078]
[1764867567743,15.3305,3169.8,3169.7,11.029]
[1764867569434,15.3305,3169.8,3169.7,26.0079]
[1764867569744,44.0078,3170.4,3169.9,14.9789]
[1764867570241,44.0078,3170.4,3169.9,18.1867]
[1764867570541,7.5855,3170.0,3169.9,18.1867]
[1764867571640,44.0078,3170.4,3169.9,18.1867]
[1764867572042,19.7777,3170.0,3169.9,18.1867]
[1764867575540,19.7777,3170.0,3169.9,10.478]
[1764867576045,19.7777,3170.0,3169.9,15.9868]
[1764867578346,14.7497,3169.4,3169.3,0.00749929]
[1764867578640,14.7497,3169.4,3169.3,19.90409929]
[1764867582239,14.7497,3169.4,3169.3,26.96649929]
[1764867582649,10.2477,3169.5,3169.4,12.5774]
[1764867582845,16.3802,3169.5,3169.4,12.5774]
[1764867587047,7.655,3170.0,3169.4,12.5774]
[1764867587252,19.9074,3170.0,3169.9,12.5774]
[1764867587553,16.6996,3170.0,3169.9,25.3494]
[1764867588047,44.0078,3170.4,3169.9,25.3494]
[1764867588240,6.1199,3170.0,3169.9,25.3494]
[1764867588548,16.2132,3170.0,3169.9,25.3494]
[1764867589553,12.2524,3169.7,3169.6,15.7852]
[1764867589745,12.2524,3169.7,3169.6,22.2035]
[1764867590252,12.2524,3169.7,3169.6,28.5552]
[1764867590550,12.2524,3169.7,3169.6,22.2025]
[1764867590748,12.2524,3169.7,3169.6,18.9947]
[1764867591150,12.2524,3169.7,3169.3,0.00749929]
[1764867591151,12.2524,3169.4,3169.3,0.00749929]
[1764867591649,12.2524,3169.4,3169.3,6.23219929]
[1764867591852,53.0524,3169.4,3169.3,12.58489929]
[1764867592243,53.0524,3169.4,3169.3,6.23219929]
[1764867593354,53.0524,3169.4,3169.3,12.58489929]
[1764867593646,46.9199,3169.4,3169.3,12.58489929]
[1764867595255,40.8,3169.4,3169.3,12.58489929]
[1764867595553,40.8,3169.4,3169.3,6.23219929]
[1764867595759,40.8,3169.4,3169.3,12.58489929]
[1764867596253,12.2524,3169.4,3169.3,0.00749929]
[1764867596456,12.2524,3169.4,3169.3,6.23219929]
[1764867596649,53.0524,3169.4,3169.3,18.99819929]
[1764867598756,12.2524,3169.4,3169.3,18.99819929]
[1764867599756,12.2524,3169.4,3169.3,0.00749929]
[1764867599953,12.2524,3169.4,3169.3,6.97449929]
[1764867600349,12.2524,3169.1,3169.0,8.6254]
[1764867600550,12.2524,3169.1,3169.0,21.2028]
[1764867601057,15.4602,3169.3,3169.2,12.5774]
[1764867601251,12.2524,3169.1,3169.0,8.6254]
[1764867601458,12.2524,3169.1,3169.0,9.10045043]
[1764867601648,13.87065127,3169.1,3169.0,21.67785043]
[1764867601848,0.00473052,3169.4,3169.3,12.5774]
[1764867601849,12.25713052,3169.4,3169.3,12.5774]
[1764867602053,3.9608,3170.0,3169.3,12.73513]
[1764867602251,5.57905127,3170.0,3169.3,12.73513]
[1764867602451,46.37905127,3170.0,3169.3,12.73513]
[1764867602858,6.1199,3169.4,3169.1,3.2078]
[1764867603156,12.2524,3169.3,3169.2,12.5774]
[1764867603463,12.2524,3169.3,3169.2,23.3244]
[1764867603760,6.1199,3169.3,3169.2,23.3244]
[1764867604353,6.1199,3169.3,3169.1,3.2078]
[1764867604354,12.8523,3169.2,3169.1,15.9097]
[1764867604561,12.8523,3169.2,3169.1,22.3871]
[1764867604758,12.8523,3169.2,3169.1,12.762]
[1764867605260,12.8523,3169.4,3169.3,12.7019]
[1764867605457,12.8523,3169.2,3169.1,25.4639]
[1764867605666,6.3984,3169.2,3169.1,25.4639]
[1764867605850,12.8523,3169.2,3169.1,19.1793]
[1764867606053,12.8523,3169.2,3169.1,12.762]
[1764867611562,12.8523,3169.2,3169.1,19.1793]
[1764867611970,12.8523,3169.2,3169.1,12.762]
[1764867612768,12.8523,3169.1,3169.0,0.04545043]
[1764867612963,18.77954765,3169.1,3169.0,0.04545043]
[1764867613163,18.44526526,3169.1,3169.0,0.04545043]
[1764867613467,59.24526526,3169.1,3169.0,0.04545043]
[1764867613969,16.8131,3169.5,3169.4,6.4173]
[1764867614162,17.91390544,3169.5,3169.0,2.25775043]
[1764867614366,41.56662,3169.4,3169.3,12.7019]
[1764867614670,40.8,3169.4,3169.3,12.7019]
[1764867615355,3.21252035,3169.6,3169.5,12.7019]
[1764867615670,3.21252035,3169.6,3169.5,27.6536]
[1764867617965,0.00472035,3169.6,3169.5,27.6536]
[1764867618271,40.8,3170.0,3169.9,12.7019]
[1764867618465,9.6062,3170.1,3170.0,12.7019]
[1764867618970,54.8534,3170.5,3170.4,12.7019]
[1764867619167,50.4062,3170.5,3170.4,25.4539]
[1764867619475,9.6062,3170.9,3170.8,12.7019]
[1764867619769,50.4062,3170.9,3170.8,12.7019]
[1764867620468,40.8,3170.9,3170.8,12.7019]
[1764867620665,6.40137148,3171.0,3170.9,12.7019]
[1764867620873,16.43847148,3171.0,3170.9,6.4173]
[1764867621064,40.80297148,3171.0,3170.9,12.7019]
[1764867621461,6.40137148,3171.0,3170.9,12.7019]
[1764867622472,0.00297148,3171.0,3170.9,12.7019]
[1764867622873,6.40137148,3171.0,3170.9,12.7019]
[1764867623274,16.43847148,3171.0,3170.9,12.7019]
[1764867623476,16.43847148,3171.0,3170.9,6.4173]
[1764867623972,16.43847148,3171.0,3170.9,12.7019]
[1764867624467,2.38658834,3171.4,3170.9,12.7019]
[1764867624468,3.2078,3171.7,3170.9,12.7019]
[1764867624775,3.2078,3171.7,3170.5,3.39753052]
[1764867624776,12.8523,3171.7,3171.6,12.7019]
[1764867624970,12.8523,3171.2,3171.1,3.2078]
[1764867625167,12.8523,3171.2,3171.1,15.9528]
[1764867625370,12.8523,3171.2,3171.1,12.745]
[1764867625569,12.8553944,3171.2,3171.1,12.74726128]
[1764867626471,0.0030944,3171.2,3171.1,25.44916128]
[1764867626671,0.0030944,3171.2,3171.1,28.65696128]
[1764867627074,16.4355,3172.0,3171.9,6.4173]
[1764867627271,16.4355,3172.0,3171.9,25.4449]
[1764867627771,16.4355,3172.0,3171.9,19.1603]
[1764867627977,16.43839368,3172.0,3171.9,25.4449]
[1764867628180,16.43839368,3172.0,3171.9,19.1603]
[1764867628378,16.43839368,3172.0,3171.9,12.743]
[1764867628574,16.43839368,3172.0,3171.1,9.62736128]
[1764867628575,6.3984,3171.2,3171.1,9.62736128]
[1764867628777,12.8523,3171.2,3171.1,25.12096128]
[1764867628976,3.58609368,3172.0,3171.4,12.7019]
[1764867629778,40.8,3171.9,3171.4,12.7019]
[1764867630180,16.4355,3171.5,3171.4,6.4173]
[1764867630578,40.8,3171.9,3171.8,6.4173]
[1764867630778,40.8,3171.9,3171.8,25.4409]
[1764867631286,40.8,3171.9,3171.1,3.21006128]
[1764867631483,40.8,3171.9,3171.2,5.469]
[1764867632281,16.4355,3171.5,3171.4,12.85953]
[1764867632787,9.9816,3171.5,3171.4,12.85953]
[1764867632981,6.3984,3171.5,3171.4,12.85953]
[1764867633488,40.8,3171.9,3171.8,6.4173]
[1764867633678,3.58609368,3172.0,3171.9,12.7019]
[1764867633891,15.58349368,3172.0,3171.9,6.4173]
[1764867634087,15.1569,3171.5,3171.4,12.19033]
[1764867634291,44.38609368,3172.0,3171.4,22.85633]
[1764867634690,8.8512,3171.5,3171.4,22.85633]
[1764867634893,44.38609368,3172.0,3171.4,22.85633]
[1764867635398,3.2078,3172.6,3172.5,6.0074]
[1764867635699,44.3832,3173.0,3172.5,27.9755]
[1764867636299,44.38714622,3173.0,3172.5,27.9755]
[1764867636501,44.38714622,3173.0,3172.9,6.0253]
[1764867637001,6.3673,3173.5,3172.9,12.0327]
[1764867637193,5.6917,3173.0,3172.9,12.0327]
[1764867637388,40.8,3173.4,3172.9,15.2405]
[1764867637590,40.8,3173.4,3173.3,12.0327]
[1764867637789,11.9974,3173.4,3173.3,24.7657]
[1764867637999,3.2078,3175.3,3174.3,6.0253]
[1764867638198,11.9974,3174.4,3174.3,0.0082738]
[1764867638392,5.6917,3174.4,3174.3,20.5889738]
[1764867638601,11.9974,3174.4,3174.3,0.0082738]
[1764867638798,11.9974,3174.4,3174.3,3.2562738]
[1764867640300,15.2052,3174.4,3174.3,3.2562738]
[1764867640497,15.2052,3174.4,3174.3,9.2815738]
[1764867640498,11.9974,3174.4,3174.3,9.2815738]
[1764867640695,11.9974,3174.4,3174.3,3.2562738]
[1764867641095,11.9974,3174.4,3174.3,9.2815738]
[1764867642003,11.9974,3174.4,3174.3,3.2562738]
[1764867642205,5.6917,3174.4,3174.3,15.2889738]
[1764867642600,8.3968,3174.5,3174.4,11.3092]
[1764867642804,8.39908752,3175.0,3174.9,10.5528]
[1764867643301,49.19908752,3175.0,3174.9,10.5528]
[1764867643799,5.2373,3174.8,3174.7,8.4767]
[1764867644003,8.24138752,3175.0,3174.9,10.5528]
[1764867645004,5.2373,3174.8,3174.7,18.6047]
[1764867645201,10.2456,3174.8,3174.7,8.4767]
[1764867645399,10.2456,3174.8,3174.7,10.3368]
[1764867645602,5.2373,3174.4,3174.3,5.2771738]
[1764867645809,5.2373,3174.4,3174.3,11.9131738]
[1764867646106,10.2456,3174.4,3174.3,0.0082738]
[1764867646904,8.59618834,3174.5,3173.4,8.4767]
[1764867646905,5.2373,3173.5,3173.4,8.4767]
[1764867647104,3.0018,3174.0,3173.9,5.2689]
[1764867647105,13.2474,3174.0,3173.9,5.2689]
[1764867647404,13.2474,3174.0,3173.4,6.0748]
[1764867647405,13.2474,3173.5,3173.4,3.2078]
[1764867647704,3.0018,3174.0,3173.4,13.7606]
[1764867647910,3.0018,3174.0,3173.4,13.76754812]
[1764867648207,13.2474,3173.5,3173.4,0.00694812]
[1764867649510,10.2456,3173.3,3173.2,4.31]
[1764867650010,51.0456,3173.3,3173.2,4.31]
[1764867650610,51.0456,3173.3,3173.2,4.31303741]
[1764867654213,51.81649823,3173.3,3173.2,4.31303741]
[1764867656911,46.0373,3173.3,3173.2,14.86583741]
[1764867657118,3.0018,3173.5,3173.4,10.5528]
[1764867657409,8.2391,3173.5,3173.4,10.5528]
[1764867657614,6.2096,3174.0,3173.5,10.5528]
[1764867657910,11.01766138,3173.9,3173.8,5.2689]
[1764867658213,51.81766138,3173.9,3173.8,5.2689]
[1764867658916,51.81766138,3173.9,3173.2,4.31303741]
[1764867659112,40.8,3173.9,3173.2,4.31303741]
[1764867659317,0.77719056,3173.8,3173.2,4.31303741]
[1764867659817,40.8,3173.9,3173.8,10.5528]
[1764867660205,41.57747762,3173.9,3173.8,10.5528]
[1764867660920,8.2391,3174.0,3173.9,10.5528]
[1764867661112,3.2078,3174.4,3173.9,10.5528]
[1764867661315,0.00473052,3174.7,3174.6,10.5528]
[1764867662518,0.00228752,3175.0,3174.9,10.5528]
[1764867662822,0.00228752,3175.0,3174.9,13.7606]
[1764867665120,5.15253052,3175.3,3175.2,10.6905]
[1764867665318,5.93108772,3175.3,3175.2,10.6905]
[1764867665513,11.46248772,3175.3,3174.9,3.2078]
[1764867665713,0.00473052,3175.3,3175.1,10.8232]
[1764867666019,11.46551688,3175.3,3174.9,3.2078]
[1764867666214,0.0077835,3175.3,3175.2,10.8232]
[1764867666419,10.6869835,3175.3,3175.2,5.4016]
[1764867666615,5.1555835,3175.3,3175.2,10.8232]
[1764867666818,0.0077835,3175.3,3175.2,10.8232]
[1764867668025,0.0077835,3175.3,3175.2,5.4016]
[1764867668026,10.6869835,3175.3,3175.2,5.4016]
[1764867668221,0.0077835,3175.3,3174.9,14.031]
[1764867668524,10.6869835,3175.3,3175.2,5.4016]
[1764867669121,5.1555835,3175.3,3175.2,10.8232]
[1764867669518,5.1555835,3175.3,3175.2,23.5272]
[1764867670619,0.0077835,3175.3,3175.2,23.5272]
[1764867671526,8.3556,3175.6,3175.5,10.8232]
[1764867671721,40.8,3175.9,3175.5,10.8232]
[1764867671922,40.8,3175.9,3175.8,10.8232]
[1764867672331,10.6792,3175.9,3175.8,12.701]
[1764867672630,10.68220838,3175.9,3175.8,12.70400917]
[1764867674227,10.68220838,3175.9,3175.8,12.70300917]
[1764867674532,10.68220838,3175.9,3175.8,18.10460917]
[1764867675128,10.68220838,3175.9,3175.3,3.2078]
[1764867675129,10.6792,3175.4,3174.9,3.2078]
[1764867675321,2.9647,3175.5,3174.9,3.2078]
[1764867675322,5.1478,3175.0,3174.9,14.031]
[1764867675522,8.1125,3175.0,3174.9,14.031]
[1764867675721,13.6439,3175.0,3174.9,26.73]
[1764867676229,8.1125,3175.0,3174.9,26.73217679]
[1764867676428,13.6439,3175.0,3174.9,26.73217679]
[1764867676633,8.1125,3175.0,3174.9,26.73217679]
[1764867676930,40.8,3175.4,3175.3,5.4016]
[1764867677229,40.8,3175.4,3174.9,3.21097679]
[1764867677531,13.6439,3175.0,3174.9,3.21097679]
[1764867677726,13.6439,3175.0,3174.9,8.00397679]
[1764867678123,8.1125,3175.0,3174.9,25.24617679]
[1764867678326,40.8,3175.4,3174.9,25.24617679]
[1764867678728,10.6792,3174.7,3174.6,0.00473052]
[1764867679431,10.6792,3173.9,3173.8,7.1038]
[1764867679931,10.6792,3173.9,3173.8,3.21053663]
[1764867680329,10.6792,3173.9,3173.8,0.00273663]
[1764867681733,10.6792,3173.9,3173.8,5.40433663]
[1764867681934,40.8,3174.0,3173.9,10.8232]
[1764867682135,43.7647,3174.0,3173.9,10.8232]
[1764867682330,10.6792,3173.9,3173.8,5.40433663]
[1764867682535,10.6792,3173.9,3173.8,11.41373663]
[1764867682731,5.1478,3173.9,3173.8,22.23693663]
[1764867683239,10.6792,3173.9,3173.8,22.23693663]
[1764867683634,2.9647,3174.0,3173.8,22.23693663]
[1764867683635,8.1125,3174.0,3173.9,10.8232]
[1764867684036,13.6439,3174.0,3173.9,10.8232]
[1764867684230,13.6439,3174.0,3173.9,5.4016]
[1764867684938,40.8,3174.2,3173.8,11.41373663]
[1764867684939,10.6792,3174.2,3174.1,5.4016]
[1764867685139,10.6792,3174.2,3173.8,11.41373663]
[1764867686035,5.1478,3173.9,3173.8,16.81533663]
[1764867686340,10.6792,3173.9,3173.8,16.81533663]
[1764867686939,10.6792,3173.9,3173.8,22.23693663]
[1764867688232,10.6792,3171.6,3171.5,3.94663661]
[1764867688540,5.1478,3171.6,3171.5,5.4016]
[1764867688932,8.3556,3171.7,3171.6,10.8232]
[1764867689233,13.89095157,3171.7,3171.6,0.00360957]
[1764867689836,54.69095157,3171.7,3171.6,0.00360957]
[1764867692940,54.69095157,3171.7,3171.3,0.00473052]
[1764867692941,10.6792,3171.4,3171.3,0.00473052]
[1764867693838,10.6792,3171.4,3171.3,0.00830444]
[1764867701844,10.6792,3171.4,3171.3,5.40990444]
[1764867702046,9.8987,3171.4,3171.3,5.40990444]
[1764867702243,7.6982,3171.5,3171.4,9.358]
[1764867702441,44.01175157,3171.7,3171.6,4.6894]
[1764867703249,12.46665157,3171.7,3171.6,9.358]
[1764867703441,3.21175157,3171.7,3171.6,9.358]
[1764867703641,0.00395157,3171.7,3171.6,9.51562]
[1764867708253,9.25885157,3171.7,3171.6,9.358]
[1764867708748,4.73745157,3171.7,3171.6,9.358]
[1764867708943,0.00395157,3171.7,3171.6,9.358]
[1764867712958,4.73745157,3171.7,3171.6,9.358]
[1764867713160,0.00395157,3171.7,3171.6,9.358]
[1764867715164,9.25885157,3171.7,3171.6,9.358]
[1764867715551,4.73745157,3171.7,3171.6,9.358]
[1764867716970,0.00395157,3171.7,3171.6,9.358]
[1764867718470,4.73745157,3171.7,3171.6,9.358]
[1764867719067,9.25885157,3171.7,3171.6,9.358]
[1764867719770,4.73745157,3171.7,3171.6,9.358]